bitfinex-derivatives/quotes_BTCF0:USTF0_20250501
["timestamp","ask_amount","ask_price","bid_price","bid_amount"]
[1746131538871,0.2586364,96619.0,96618.0,0.2069053]
[1746131539173,0.2586364,96619.0,96610.0,0.03507]
[1746131539174,0.2069224,96611.0,96610.0,0.03507]
[1746131539369,0.5677224,96611.0,96610.0,0.03507]
[1746131539973,0.6322224,96611.0,96610.0,0.03507]
[1746131540478,0.6332224,96611.0,96610.0,0.03607]
[1746131540783,0.6332224,96611.0,96610.0,0.04007]
[1746131543679,0.6332224,96611.0,96610.0,0.04797487]
[1746131547282,0.0517354,96602.0,96598.0,0.00155247]
[1746131547482,0.5677481,96599.0,96598.0,0.00155247]
[1746131548278,0.5677481,96599.0,96598.0,0.00355247]
[1746131548875,0.2069738,96587.0,96586.0,0.0303]
[1746131549181,0.2069974,96576.0,96566.0,0.00155323]
[1746131549387,0.5677974,96576.0,96575.0,0.20803506]
[1746131550380,0.5677974,96576.0,96575.0,0.00303546]
[1746131550578,0.5677974,96576.0,96575.0,0.06343546]
[1746131550981,0.5677974,96576.0,96575.0,0.07026336]
[1746131551180,0.5677974,96576.0,96575.0,0.27726296]
[1746131551381,0.5687974,96576.0,96575.0,0.27726296]
[1746131551685,0.5687974,96576.0,96575.0,0.00986336]
[1746131551877,0.5992974,96576.0,96575.0,0.00986336]
[1746131552688,0.5992974,96576.0,96575.0,0.21686296]
[1746131552891,0.5992974,96576.0,96575.0,0.24846296]
[1746131553183,0.0305,96576.0,96575.0,0.04146336]
[1746131553390,0.0333,96577.0,96575.0,0.04146336]
[1746131553391,0.1714,96654.0,96650.0,43.09452944]
[1746131553586,0.7216,96651.0,96650.0,32.1429755]
[1746131553780,0.7733092,96651.0,96650.0,26.08161292]
[1746131553975,1.0750184,96651.0,96650.0,24.34362308]
[1746131554180,1.33445164,96651.0,96650.0,23.42892261]
[1746131554481,1.33445164,96651.0,96650.0,22.64493237]
[1746131554783,1.33652094,96651.0,96650.0,21.75984243]
[1746131554994,1.33652094,96651.0,96650.0,21.09311396]
[1746131555180,1.33652094,96651.0,96650.0,20.41826729]
[1746131555379,1.33652094,96651.0,96650.0,19.61002872]
[1746131555583,1.33652094,96651.0,96650.0,18.72051622]
[1746131555780,1.33652094,96651.0,96650.0,18.29185305]
[1746131556089,1.33656914,96651.0,96650.0,17.52534521]
[1746131556277,1.35052094,96651.0,96650.0,16.74629987]
[1746131556483,1.44472094,96651.0,96650.0,16.3489047]
[1746131556684,1.44472094,96651.0,96650.0,15.96240943]
[1746131556878,1.43272094,96651.0,96650.0,15.24382846]
[1746131557181,1.43372094,96651.0,96650.0,14.46823202]
[1746131557390,1.18372094,96651.0,96650.0,14.06616035]
[1746131557590,1.18372094,96651.0,96650.0,13.1489913]
[1746131557895,1.18376914,96651.0,96650.0,12.05486556]
[1746131558080,1.18376914,96651.0,96650.0,11.6131479]
[1746131558387,1.18372094,96651.0,96650.0,10.229886]
[1746131558590,1.18372094,96651.0,96650.0,9.26269203]
[1746131558783,1.18372094,96651.0,96650.0,8.21109156]
[1746131558981,1.43372094,96651.0,96650.0,7.22218884]
[1746131559184,1.43372094,96651.0,96650.0,6.19203481]
[1746131559385,1.18372094,96651.0,96650.0,5.65027481]
[1746131559584,1.18372094,96651.0,96586.0,0.35821315]
[1746131559585,0.5171654,96638.0,96586.0,0.35821315]
[1746131559788,0.2069653,96591.0,96590.0,1.84101018]
[1746131559985,4.82e-05,96591.0,96590.0,0.2069674]
[1746131560189,4.82e-05,96591.0,96590.0,1.8624074]
[1746131560581,4.82e-05,96591.0,96590.0,1.9262074]
[1746131560784,0.0307482,96591.0,96590.0,1.9262074]
[1746131561289,0.0347482,96591.0,96590.0,1.9262074]
[1746131561487,0.0397482,96591.0,96590.0,1.9262074]
[1746131563988,0.0090482,96591.0,96590.0,4.6677874]
[1746131564983,0.2069629,96593.0,96590.0,5.5478416]
[1746131565187,0.05240616,96595.0,96594.0,0.2069588]
[1746131565391,0.2069425,96602.0,96601.0,1.8623817]
[1746131565986,0.5985396,96603.0,96602.0,0.2069417]
[1746131566188,0.05110829,96603.0,96602.0,4.4999217]
[1746131566384,0.0825247,96623.0,96619.0,0.2069053]
[1746131566584,0.2084032,96620.0,96619.0,1.8623453]
[1746131566784,0.2084032,96620.0,96619.0,0.2069053]
[1746131567185,0.05273756,96620.0,96619.0,5.6389253]
[1746131567583,0.05273756,96620.0,96619.0,5.6399253]
[1746131567584,0.06873756,96620.0,96619.0,5.6399253]
[1746131567789,0.07773756,96620.0,96619.0,5.6399253]
[1746131569493,0.07773756,96620.0,96619.0,3.9844853]
[1746131569494,0.11003756,96620.0,96619.0,3.9844853]
[1746131569688,0.07773756,96620.0,96619.0,5.6399253]
[1746131569889,0.0517189,96633.0,96630.0,0.2068809]
[1746131570087,0.0517189,96633.0,96619.0,5.43302]
[1746131570088,0.2068783,96632.0,96631.0,0.2068783]
[1746131570287,0.2068817,96630.0,96629.0,1.65544]
[1746131571889,0.2068946,96624.0,96623.0,0.18557018]
[1746131572088,0.2068946,96624.0,96623.0,1.5]
[1746131572288,0.2068946,96624.0,96623.0,5.43198]
[1746131573291,0.2158946,96624.0,96623.0,5.43298]
[1746131573997,0.2128946,96624.0,96623.0,5.43198]
[1746131575202,0.0517276,96617.0,96610.0,0.18557018]
[1746131575394,0.206916,96614.0,96613.0,1.65544]
[1746131575796,0.237716,96614.0,96613.0,1.65544]
[1746131576698,0.2069353,96605.0,96604.0,0.18557018]
[1746131576899,0.2586477,96613.0,96612.0,1.65544]
[1746131577099,0.3935,96614.0,96571.0,0.3608]
[1746131577303,0.0517302,96612.0,96593.0,0.2069598]
[1746131577498,0.2069568,96595.0,96594.0,0.03]
[1746131577693,0.2722768,96595.0,96594.0,0.03]
[1746131577893,0.06532,96595.0,96594.0,2.2531988]
[1746131578089,0.06532,96600.0,96594.0,2.04624]
[1746131578295,0.06532,96600.0,96599.0,1.8623881]
[1746131578493,0.06532,96600.0,96599.0,2.89702]
[1746131578695,0.3638,96614.0,96599.0,5.43222]
[1746131578696,0.2069431,96602.0,96599.0,5.43222]
[1746131578897,0.2069413,96603.0,96600.0,2.5460459]
[1746131579202,0.2069358,96605.0,96603.0,1.8623795]
[1746131579403,0.002,96605.0,96604.0,0.2688368]
[1746131580199,0.06532,96606.0,96605.0,0.2069353]
[1746131580401,0.06532,96606.0,96605.0,1.8623753]
[1746131580705,0.06532,96606.0,96605.0,1.9243753]
[1746131581315,0.2722531,96606.0,96605.0,1.9243753]
[1746131581904,0.2722531,96606.0,96605.0,0.062]
[1746131582208,0.2752531,96606.0,96605.0,0.062]
[1746131582506,0.2762531,96606.0,96605.0,0.062]
[1746131583095,0.2752531,96606.0,96605.0,0.062]
[1746131583306,0.2772531,96606.0,96605.0,0.062]
[1746131583508,0.2782531,96606.0,96605.0,0.062]
[1746131584708,0.2129331,96606.0,96605.0,0.062]
[1746131584903,0.006,96606.0,96605.0,0.062]
[1746131585115,0.2129331,96606.0,96605.0,0.062]
[1746131585410,0.006,96606.0,96605.0,0.2689353]
[1746131586598,0.006,96606.0,96605.0,1.9243753]
[1746131586804,0.004,96606.0,96605.0,1.9243753]
[1746131587103,0.006,96606.0,96605.0,1.9243753]
[1746131587604,0.004,96606.0,96605.0,1.9243753]
[1746131587814,0.2119331,96606.0,96605.0,1.71744]
[1746131588410,0.2119331,96606.0,96602.0,0.3608]
[1746131588411,0.2069396,96603.0,96602.0,0.3608]
[1746131589308,0.2069444,96601.0,96599.0,0.2069473]
[1746131589506,0.2069451,96601.0,96600.0,0.0308]
[1746131589899,0.0303,96602.0,96573.0,0.3608]
[1746131590100,0.3608,96599.0,96594.0,1.65544]
[1746131590303,0.2069567,96595.0,96594.0,1.65544]
[1746131590613,0.2069567,96595.0,96594.0,1.68624]
[1746131592014,0.2089567,96595.0,96594.0,1.71694]
[1746131592210,0.2089567,96595.0,96594.0,1.71794]
[1746131592908,0.2089567,96595.0,96594.0,1.71694]
[1746131593215,0.2089567,96595.0,96594.0,1.71794]
[1746131593612,0.2089567,96595.0,96594.0,1.65644]
[1746131594117,0.2089567,96595.0,96594.0,2.69168]
[1746131596514,0.2089567,96595.0,96594.0,0.001]
[1746131596716,0.2739567,96595.0,96594.0,0.001]
[1746131597927,0.2739567,96595.0,96577.0,0.2069948]
[1746131597928,0.5173993,96594.0,96575.0,3.546e-05]
[1746131598115,0.2070124,96569.0,96568.0,0.2512561]
[1746131598424,0.2720124,96569.0,96568.0,0.06681681]
[1746131598612,0.2720124,96569.0,96568.0,0.03290333]
[1746131599724,0.2770124,96569.0,96568.0,0.03290333]
[1746131600221,0.32756892,96569.0,96568.0,0.03290333]
[1746131601322,0.32756892,96569.0,96565.0,0.00155336]
[1746131601323,0.2070189,96566.0,96565.0,0.00155336]
[1746131601527,0.5678189,96566.0,96565.0,0.00155336]
[1746131602324,0.5678189,96566.0,96565.0,0.00255336]
[1746131602525,0.5708189,96566.0,96565.0,0.00255336]
[1746131602824,0.5738189,96566.0,96565.0,0.00255336]
[1746131605325,0.5738189,96566.0,96565.0,0.001]
[1746131607323,0.2070596,96547.0,96546.0,0.137]
[1746131607518,0.5678596,96547.0,96546.0,1.637]
[1746131607724,0.5678596,96547.0,96546.0,5.56978]
[1746131608326,0.5678596,96547.0,96546.0,5.57178]
[1746131608719,0.5678596,96547.0,96546.0,5.57278]
[1746131608919,0.2070596,96547.0,96546.0,5.57278]
[1746131609121,0.065,96549.0,96546.0,5.57278]
[1746131609330,0.065,96549.0,96548.0,4.1398374]
[1746131609627,0.3608,96558.0,96548.0,3.93278]
[1746131609828,0.3608,96558.0,96557.0,2.89702]
[1746131610126,0.567836,96558.0,96557.0,2.89702]
[1746131611213,0.065,96559.0,96557.0,5.43266]
[1746131611418,0.2720339,96559.0,96558.0,3.93266]
[1746131612636,0.2740339,96559.0,96558.0,3.93266]
[1746131613427,0.002,96559.0,96558.0,5.43266]
[1746131613822,0.003,96559.0,96558.0,5.43266]
[1746131614022,0.003,96559.0,96558.0,5.639696]
[1746131614222,0.003,96559.0,96558.0,6.000496]
[1746131614625,0.06636,96566.0,96559.0,0.2070325]
[1746131614932,0.2733794,96566.0,96565.0,2.89702]
[1746131615323,0.2733794,96566.0,96565.0,1.65544]
[1746131615631,0.2753794,96566.0,96565.0,1.65544]
[1746131616334,0.6361794,96566.0,96565.0,1.65544]
[1746131617128,0.6391794,96566.0,96565.0,1.65544]
[1746131617335,0.6401794,96566.0,96565.0,1.65544]
[1746131617629,0.43316,96566.0,96565.0,2.89702]
[1746131617831,0.3608,96574.0,96568.0,2.89702]
[1746131618033,0.47955628,96574.0,96573.0,2.89702]
[1746131618226,0.68655798,96574.0,96573.0,2.89702]
[1746131618432,0.68655798,96574.0,96573.0,3.9325]
[1746131618834,0.68855798,96574.0,96573.0,3.9325]
[1746131619035,0.69155798,96574.0,96573.0,3.9325]
[1746131619736,0.48455628,96574.0,96573.0,3.9325]
[1746131620335,0.68855798,96574.0,96573.0,3.9325]
[1746131620537,0.69155798,96574.0,96573.0,3.9325]
[1746131620837,0.69255798,96574.0,96573.0,3.9325]
[1746131621140,0.48555628,96574.0,96573.0,3.9325]
[1746131622328,0.69255798,96574.0,96573.0,3.9325]
[1746131623238,0.48555628,96574.0,96573.0,3.9325]
[1746131624139,0.69255798,96574.0,96573.0,3.9325]
[1746131624541,0.69255798,96574.0,96573.0,2.69092]
[1746131630461,0.69255798,96574.0,96573.0,3.9325]
[1746131632755,0.0517519,96572.0,96540.0,0.0517686]
[1746131632953,0.5678381,96557.0,96556.0,2.89702]
[1746131633558,0.2070456,96554.0,96546.0,0.137]
[1746131633754,0.2070456,96554.0,96547.0,1.03572]
[1746131633960,0.2070456,96554.0,96553.0,2.89702]
[1746131634151,0.05176,96556.0,96553.0,2.89702]
[1746131634354,0.2070424,96555.0,96554.0,1.03568]
[1746131634559,0.2070466,96554.0,96546.0,1.642]
[1746131634759,0.3608,96549.0,96547.0,1.03572]
[1746131634961,0.3608,96549.0,96547.0,1.03772]
[1746131635163,0.3608,96549.0,96548.0,3.93278]
[1746131635557,0.3608,96549.0,96548.0,5.43278]
[1746131637156,0.3608,96549.0,96548.0,5.43478]
[1746131637858,0.3608,96549.0,96548.0,5.43578]
[1746131640462,0.3608,96557.0,96548.0,5.43578]
[1746131640463,0.207043,96555.0,96548.0,5.43578]
[1746131640664,0.207043,96555.0,96553.0,2.89702]
[1746131641060,0.207043,96555.0,96554.0,1.03568]
[1746131642959,0.0517475,96580.0,96558.0,0.0517588]
[1746131643265,0.06636,96569.0,96564.0,0.18557018]
[1746131643465,0.05267228,96574.0,96573.0,1.24158]
[1746131643667,0.2733561,96577.0,96573.0,1.24158]
[1746131643858,0.2733561,96577.0,96574.0,1.03548]
[1746131644166,0.2733561,96577.0,96569.0,0.0304]
[1746131644167,0.2733561,96577.0,96573.0,1.24158]
[1746131644368,0.32556789,96577.0,96574.0,0.0324]
[1746131644665,0.0301,96576.0,96574.0,1.10058]
[1746131644859,0.0517457,96583.0,96574.0,1.10058]
[1746131644860,0.0686,96583.0,96577.0,0.0517488]
[1746131645064,0.0686,96583.0,96576.0,3.93246]
[1746131645065,0.0301,96580.0,96578.0,0.0651]
[1746131645362,0.0301,96580.0,96579.0,0.3608]
[1746131645558,0.0301,96580.0,96579.0,4.29326]
[1746131645759,0.08248253,96580.0,96579.0,4.35836]
[1746131645959,0.0301,96580.0,96579.0,4.35836]
[1746131646264,0.05261019,96586.0,96584.0,2.89702]
[1746131646452,0.00155431,96591.0,96588.0,1.65544]
[1746131646655,0.00155431,96591.0,96590.0,2.01624]
[1746131646960,0.0315,96602.0,96590.0,3.25782]
[1746131647260,0.08258901,96602.0,96592.0,1.24158]
[1746131647661,0.11968901,96602.0,96601.0,1.24158]
[1746131648055,0.11968901,96602.0,96601.0,1.0352]
[1746131648255,0.33563071,96602.0,96601.0,1.0352]
[1746131648456,0.33563071,96602.0,96601.0,1.1006]
[1746131648655,0.33263071,96602.0,96601.0,1.1006]
[1746131648863,0.33663071,96602.0,96601.0,1.1006]
[1746131649065,0.12968901,96602.0,96601.0,1.1016]
[1746131649364,0.26803071,96602.0,96601.0,1.1016]
[1746131649664,0.06108901,96602.0,96601.0,1.1016]
[1746131650065,0.09268901,96602.0,96601.0,1.1016]
[1746131650259,0.29963071,96602.0,96601.0,1.1016]
[1746131655459,0.09268901,96602.0,96601.0,1.1016]
[1746131655764,0.0686,96613.0,96607.0,2.89702]
[1746131655963,0.0332,96614.0,96612.0,0.3608]
[1746131656155,0.0686,96618.0,96613.0,0.0954]
[1746131656462,0.0686,96618.0,96613.0,1.13044]
[1746131656764,0.206916,96614.0,96613.0,0.0954]
[1746131657157,0.206916,96614.0,96613.0,1.13044]
[1746131657954,0.215916,96614.0,96613.0,1.13144]
[1746131658552,0.220916,96614.0,96613.0,1.13144]
[1746131660672,0.253616,96614.0,96613.0,1.13144]
[1746131663171,0.253616,96614.0,96613.0,1.06814]
[1746131663365,0.318816,96614.0,96613.0,1.06814]
[1746131664163,0.286516,96614.0,96613.0,1.06814]
[1746131664569,0.286516,96614.0,96601.0,0.0626]
[1746131664570,0.2069417,96602.0,96601.0,0.0626]
[1746131664772,0.2069503,96598.0,96597.0,0.0311]
[1746131665069,0.2069503,96598.0,96597.0,1.12796]
[1746131665261,0.2069503,96598.0,96597.0,0.0928]
[1746131666472,0.2099503,96598.0,96597.0,0.0311]
[1746131666974,0.2119503,96598.0,96597.0,0.0311]
[1746131669076,0.2119503,96598.0,96597.0,0.0629]
[1746131671880,0.2119503,96598.0,96597.0,0.0311]
[1746131672384,0.2119503,96598.0,96597.0,0.0612]
[1746131673071,0.005,96598.0,96597.0,3.99346]
[1746131673482,0.2119503,96598.0,96597.0,3.99346]
[1746131674180,0.005,96598.0,96597.0,3.99346]
[1746131674770,0.2119503,96598.0,96597.0,3.99346]
[1746131677882,0.005,96598.0,96597.0,3.99346]
[1746131683887,0.005,96598.0,96597.0,3.82762307]
[1746131684091,0.0381,96598.0,96597.0,3.82762307]
[1746131684791,0.2450503,96598.0,96597.0,3.82762307]
[1746131684985,0.2779503,96598.0,96597.0,3.82762307]
[1746131689477,0.2779503,96598.0,96597.0,2.27682]
[1746131689680,0.2779503,96598.0,96597.0,3.82762307]
[1746131703696,0.2779503,96598.0,96597.0,2.79238307]
[1746131703897,0.2779503,96598.0,96597.0,3.82762307]
[1746131715403,0.2779503,96598.0,96597.0,2.58604307]
[1746131716906,0.2779503,96598.0,96597.0,3.85992307]
[1746131723007,0.2779503,96598.0,96597.0,2.82468307]
[1746131724410,0.2450503,96598.0,96597.0,2.82468307]
[1746131724607,0.06876,96605.0,96597.0,2.82468307]
[1746131724914,0.06876,96610.0,96604.0,2.79238307]
[1746131725107,0.258663,96608.0,96605.0,0.4929]
[1746131725310,0.2069331,96606.0,96605.0,0.4929]
[1746131725807,0.1575,96607.0,96605.0,0.4929]
[1746131726002,0.1575,96607.0,96606.0,2.79238307]
[1746131726205,0.2069239,96611.0,96606.0,2.79238307]
[1746131726403,0.1575,96614.0,96611.0,1.24158]
[1746131726713,0.1575,96614.0,96612.0,0.3227]
[1746131726714,0.2069181,96613.0,96612.0,0.3227]
[1746131728111,0.3657181,96613.0,96612.0,1.35778]
[1746131728410,0.3667181,96613.0,96612.0,1.35778]
[1746131728814,0.3707181,96613.0,96612.0,1.35778]
[1746131737118,0.2119181,96613.0,96612.0,1.35778]
[1746131737420,0.2119181,96613.0,96612.0,5.65016307]
[1746131737421,0.2069181,96613.0,96612.0,5.65016307]
[1746131738321,0.0517283,96616.0,96612.0,5.65016307]
[1746131738521,0.46442965,96617.0,96616.0,2.79238307]
[1746131739021,0.46442965,96617.0,96616.0,3.82738307]
[1746131741017,0.46542965,96617.0,96616.0,3.82738307]
[1746131741523,0.47042965,96617.0,96616.0,3.82738307]
[1746131745019,0.47042965,96617.0,96616.0,3.77567332]
[1746131745521,0.47042965,96617.0,96616.0,3.72396357]
[1746131745716,0.47042965,96617.0,96616.0,3.67225382]
[1746131745922,0.47042965,96617.0,96616.0,3.62054746]
[1746131746117,0.2069438,96601.0,96600.0,0.3608]
[1746131746316,0.2069438,96601.0,96600.0,1.5]
[1746131746512,0.2069438,96601.0,96600.0,4.97482567]
[1746131747316,0.3686438,96601.0,96600.0,4.97482567]
[1746131747522,0.3696438,96601.0,96600.0,4.97482567]
[1746131747726,0.3706438,96601.0,96600.0,4.97482567]
[1746131748112,0.1637,96601.0,96591.0,0.1627]
[1746131748318,0.2069631,96592.0,96591.0,0.1627]
[1746131748717,0.2069631,96592.0,96591.0,1.19698001]
[1746131749221,0.5295631,96592.0,96591.0,1.19698001]
[1746131750219,0.5295631,96592.0,96591.0,1.19798001]
[1746131754319,0.5295631,96592.0,96591.0,1.03528001]
[1746131754519,0.5295631,96592.0,96591.0,0.001]
[1746131756423,0.5295631,96592.0,96580.0,0.3608]
[1746131756424,0.2069781,96585.0,96580.0,0.3608]
[1746131756718,0.2069974,96576.0,96559.0,0.3608]
[1746131756924,0.5677974,96576.0,96571.0,0.1583]
[1746131757728,0.8867974,96576.0,96571.0,0.1583]
[1746131758422,0.8867974,96576.0,96575.0,0.00862431]
[1746131758614,0.8867974,96576.0,96575.0,0.00103546]
[1746131759529,0.8887974,96576.0,96575.0,0.00103546]
[1746131760520,0.8877974,96576.0,96575.0,0.00103546]
[1746131760830,0.8887974,96576.0,96575.0,0.00103546]
[1746131763529,0.5279974,96576.0,96575.0,0.00103546]
[1746131764730,0.8887974,96576.0,96575.0,0.00103546]
[1746131769725,0.8887974,96576.0,96571.0,1.55080307]
[1746131769726,0.0517504,96574.0,96571.0,1.55080307]
[1746131769925,0.5295038,96573.0,96572.0,1.03428001]
[1746131770126,0.0517535,96569.0,96564.0,0.1625]
[1746131770327,0.207021,96565.0,96564.0,0.1625]
[1746131771119,0.529521,96565.0,96564.0,0.1625]
[1746131772025,0.890321,96565.0,96564.0,0.1625]
[1746131772323,0.890321,96565.0,96564.0,0.1635]
[1746131772525,0.890321,96565.0,96564.0,0.15205967]
[1746131772725,0.890321,96565.0,96564.0,0.15105967]
[1746131772922,0.890321,96565.0,96564.0,0.002]
[1746131773228,0.94279408,96565.0,96564.0,0.002]
[1746131774027,0.94279408,96565.0,96564.0,1.03628001]
[1746131778237,0.94279408,96565.0,96564.0,1.19618001]
[1746131780237,0.94279408,96565.0,96564.0,0.94422872]
[1746131781940,0.94279408,96565.0,96564.0,0.92697872]
[1746131782131,0.2070352,96559.0,96553.0,0.3175]
[1746131782332,0.3608,96557.0,96554.0,0.92697872]
[1746131782531,0.3293,96558.0,96556.0,0.92697872]
[1746131782830,0.368436,96558.0,96557.0,3.69242438]
[1746131783339,0.368436,96558.0,96557.0,5.19242438]
[1746131784843,0.368436,96558.0,96557.0,5.19642438]
[1746131785744,0.368436,96558.0,96557.0,3.69642438]
[1746131790843,0.207036,96558.0,96557.0,3.69642438]
[1746131791035,0.207051,96551.0,96550.0,2.41261988]
[1746131791439,0.207051,96551.0,96550.0,3.3395986]
[1746131792545,0.207051,96551.0,96550.0,3.3435986]
[1746131793841,0.207051,96551.0,96550.0,3.3475986]
[1746131795044,0.207051,96551.0,96550.0,3.5035986]
[1746131796647,0.207051,96551.0,96550.0,3.5015986]
[1746131797467,0.207051,96551.0,96550.0,3.4975986]
[1746131797756,0.207051,96551.0,96550.0,3.4995986]
[1746131801960,0.370651,96551.0,96550.0,3.4995986]
[1746131803363,0.370651,96551.0,96550.0,0.92002872]
[1746131803665,0.2070875,96534.0,96533.0,0.2946]
[1746131803960,0.2070875,96534.0,96533.0,1.21462872]
[1746131804162,0.2070875,96534.0,96533.0,5.0426686]
[1746131804764,0.2080875,96534.0,96533.0,5.0486686]
[1746131804958,0.2080875,96534.0,96533.0,5.0536686]
[1746131805461,0.2090875,96534.0,96533.0,5.0486686]
[1746131805761,0.2090875,96534.0,96533.0,4.9114686]
[1746131806857,0.2100875,96534.0,96533.0,5.2371686]
[1746131808170,0.2100875,96534.0,96533.0,5.24492209]
[1746131809964,0.2100875,96534.0,96533.0,1.75866553]
[1746131810165,0.5299875,96534.0,96533.0,1.75866553]
[1746131811664,0.8907875,96534.0,96533.0,1.60989647]
[1746131812072,0.0517758,96527.0,96526.0,0.83863681]
[1746131812268,0.2071089,96524.0,96523.0,0.14318]
[1746131812470,0.2071175,96520.0,96519.0,0.1589]
[1746131812772,0.2071175,96520.0,96519.0,1.6589]
[1746131812969,0.2071175,96520.0,96519.0,4.71582286]
[1746131814165,0.2071175,96520.0,96519.0,4.71782286]
[1746131814469,0.25831067,96520.0,96519.0,4.71982286]
[1746131815370,0.25831067,96520.0,96519.0,4.88182286]
[1746131815769,0.25831067,96520.0,96519.0,4.88941566]
[1746131815972,0.25831067,96520.0,96519.0,3.38941566]
[1746131816469,0.25831067,96520.0,96519.0,3.55251566]
[1746131823572,0.3608,96545.0,96520.0,2.2856632]
[1746131823773,0.07891218,96560.0,96520.0,2.2856632]
[1746131823774,0.07891218,96560.0,96549.0,1.44702639]
[1746131823986,0.0676,96563.0,96559.0,3.05542286]
[1746131824274,0.2746268,96563.0,96562.0,0.83863681]
[1746131824465,0.32674892,96563.0,96562.0,1.60839647]
[1746131825376,0.32874892,96563.0,96562.0,1.62739647]
[1746131825676,0.32974892,96563.0,96562.0,1.65139647]
[1746131826371,0.32974892,96563.0,96562.0,1.98799647]
[1746131827168,0.32874892,96563.0,96562.0,1.96399647]
[1746131827382,0.32874892,96563.0,96562.0,1.94499647]
[1746131827578,0.33074892,96563.0,96562.0,1.94499647]
[1746131828075,0.32874892,96563.0,96562.0,1.94499647]
[1746131828279,0.33074892,96563.0,96562.0,1.94499647]
[1746131831975,0.26314892,96563.0,96562.0,1.94499647]
[1746131833677,0.26314892,96563.0,96562.0,3.39202286]
[1746131835775,0.26314892,96563.0,96562.0,3.22372286]
[1746131835980,0.42924892,96563.0,96562.0,3.05542286]
[1746131836183,0.2070274,96562.0,96561.0,0.3608]
[1746131836372,0.2070446,96554.0,96553.0,0.3608]
[1746131836575,0.2070446,96554.0,96553.0,0.32006184]
[1746131836873,0.2070446,96554.0,96553.0,1.0898215]
[1746131837977,0.2090446,96554.0,96553.0,1.0898215]
[1746131839986,0.2090446,96554.0,96553.0,0.76975966]
[1746131840781,0.2090446,96554.0,96553.0,0.70872298]
[1746131840981,0.2090446,96554.0,96536.0,0.32]
[1746131840982,0.207081,96537.0,96536.0,0.1633]
[1746131841183,0.207081,96537.0,96536.0,0.14810741]
[1746131841492,0.207081,96537.0,96536.0,3.09322254]
[1746131841790,0.207081,96537.0,96536.0,2.94511513]
[1746131841981,0.520481,96537.0,96536.0,2.94511513]
[1746131842479,0.522481,96537.0,96536.0,2.94611513]
[1746131843891,0.522481,96537.0,96536.0,2.94511513]
[1746131845391,0.2070832,96536.0,96535.0,0.3608]
[1746131845893,0.5260832,96536.0,96535.0,0.3608]
[1746131846483,0.5280832,96536.0,96535.0,0.3608]
[1746131847387,0.2070896,96533.0,96525.0,0.3608]
[1746131847793,0.2070896,96533.0,96532.0,0.66100581]
[1746131848987,0.2090896,96533.0,96532.0,0.66100581]
[1746131849494,0.2090896,96533.0,96532.0,0.65177581]
[1746131849795,0.2090896,96533.0,96532.0,0.56677581]
[1746131849994,0.2071046,96526.0,96525.0,0.3608]
[1746131850181,0.2740246,96526.0,96525.0,1.19943681]
[1746131850386,0.2740246,96526.0,96525.0,3.21323901]
[1746131850898,0.5862246,96526.0,96525.0,3.21323901]
[1746131851193,0.5862246,96526.0,96525.0,0.56677581]
[1746131851591,0.5882246,96526.0,96525.0,0.56677581]
[1746131853993,0.2071175,96520.0,96519.0,0.0075928]
[1746131854196,0.2071197,96519.0,96515.0,0.3618361]
[1746131854398,0.3753197,96519.0,96516.0,0.1535]
[1746131854588,0.3753197,96519.0,96518.0,0.56832966]
[1746131855599,0.5404197,96519.0,96518.0,0.56832966]
[1746131856012,0.5414197,96519.0,96518.0,0.56832966]
[1746131858005,0.5414197,96519.0,96518.0,0.00155385]
[1746131858396,0.5414197,96519.0,96518.0,0.00936854]
[1746131858703,0.5414197,96519.0,96518.0,1.45639493]
[1746131859892,0.1186963,96526.0,96518.0,3.79503174]
[1746131859893,0.06692,96526.0,96518.0,3.79503174]
[1746131860092,0.0517778,96523.0,96519.0,0.3251]
[1746131860302,0.1691,96525.0,96520.0,0.3608]
[1746131860512,0.0517674,96543.0,96520.0,0.3608]
[1746131860513,0.0517731,96532.0,96524.0,2.2856632]
[1746131860802,0.2083736,96531.0,96530.0,0.83863681]
[1746131861102,0.4154675,96531.0,96530.0,1.19943681]
[1746131861303,0.4154675,96531.0,96530.0,2.6464632]
[1746131861898,0.44583808,96531.0,96530.0,4.1464632]
[1746131862298,0.45083808,96531.0,96530.0,4.1464632]
[1746131862499,0.29423808,96531.0,96530.0,4.1464632]
[1746131862906,0.0517698,96538.0,96530.0,4.1464632]
[1746131863115,0.2070918,96532.0,96531.0,0.89377581]
[1746131863302,0.2070918,96532.0,96531.0,1.827]
[1746131863497,0.2070918,96532.0,96531.0,4.67943901]
[1746131864803,0.2120918,96532.0,96531.0,4.67943901]
[1746131865111,0.2120918,96532.0,96531.0,5.04023901]
[1746131865501,0.2070918,96532.0,96531.0,5.04023901]
[1746131865702,0.2110918,96532.0,96531.0,5.04023901]
[1746131865901,0.004,96532.0,96531.0,5.04023901]
[1746131866109,0.2110918,96532.0,96531.0,5.04023901]
[1746131866303,0.3671918,96532.0,96531.0,5.04023901]
[1746131867605,0.3631918,96532.0,96531.0,5.04023901]
[1746131867910,0.2070918,96532.0,96531.0,5.04023901]
[1746131868602,0.2070918,96532.0,96531.0,3.54023901]
[1746131880424,0.3610918,96532.0,96531.0,3.54023901]
[1746131880724,0.2070918,96532.0,96531.0,3.54023901]
[1746131882431,0.2070817,96537.0,96532.0,2.2856632]
[1746131882625,0.2588461,96539.0,96538.0,2.2856632]
[1746131882925,0.2588461,96539.0,96538.0,2.85243901]
[1746131883122,0.2070768,96539.0,96538.0,4.35243901]
[1746131883429,0.0517655,96546.0,96538.0,4.71323901]
[1746131883627,0.0517655,96546.0,96539.0,0.3214]
[1746131883628,0.2070732,96541.0,96539.0,0.3214]
[1746131883826,0.2070732,96541.0,96539.0,0.4896]
[1746131884024,0.2070732,96541.0,96540.0,2.85243901]
[1746131884428,0.2070732,96541.0,96540.0,4.68043901]
[1746131885030,0.20707,96543.0,96540.0,4.68043901]
[1746131885230,0.20707,96543.0,96542.0,2.85243901]
[1746131885632,0.20707,96543.0,96542.0,4.35243901]
[1746131886732,0.20807,96543.0,96542.0,4.35243901]
[1746131887232,0.20707,96543.0,96542.0,4.35243901]
[1746131887422,0.20807,96543.0,96542.0,4.35243901]
[1746131887922,0.20807,96543.0,96542.0,4.66263901]
[1746131890238,0.20807,96543.0,96542.0,4.0958632]
[1746131890436,0.20807,96543.0,96542.0,4.66263901]
[1746131893042,0.001,96543.0,96542.0,4.66263901]
[1746131893231,0.0672,96552.0,96542.0,2.37697581]
[1746131893432,0.3146,96561.0,96549.0,3.21323901]